bitfinex/quotes_SOLUSD_20250414
["timestamp","ask_amount","ask_price","bid_price","bid_amount"]
[1744628157638,14.39645552,133.86,133.82,0.28432314]
[1744628158127,7.33585552,133.84,133.79,0.14216157]
[1744628158438,7.33585552,133.83,133.8,2.73338538]
[1744628158621,7.33585552,133.84,133.8,2.73338538]
[1744628158800,7.33585552,133.84,133.8,7.33585552]
[1744628159509,14.80785552,133.84,133.81,2.73367709]
[1744628160529,14.80785552,133.84,133.8,7.47801709]
[1744628161531,7.472,133.84,133.8,7.47801709]
[1744628161731,14.80785552,133.84,133.8,7.47801709]
[1744628162325,14.80785552,133.84,133.81,2.73359485]
[1744628164638,14.80805552,133.83,133.81,2.73357165]
[1744628165200,14.80805552,133.83,133.79,7.47801709]
[1744628165429,7.33585552,133.82,133.78,7.33585552]
[1744628165636,7.33585552,133.82,133.77,7.76234023]
[1744628166004,7.33585552,133.82,133.77,15.23774023]
[1744628166306,7.33585552,133.83,133.79,0.28432314]
[1744628166502,7.33585552,133.83,133.79,7.62017866]
[1744628167234,7.33585552,133.83,133.8,2.73363202]
[1744628167429,14.80855552,133.82,133.8,2.73363202]
[1744628167632,7.33585552,133.81,133.8,2.73363202]
[1744628168004,7.33585552,133.81,133.76,15.01681709]
[1744628168529,7.33585552,133.81,133.76,7.39885552]
[1744628169137,7.33585552,133.81,133.77,2.73350698]
[1744628169342,7.33585552,133.8,133.77,2.73350698]
[1744628169519,14.80985552,133.8,133.77,2.73350698]
[1744628169841,7.33585552,133.8,133.77,2.73350698]
[1744628170040,14.80965552,133.8,133.77,2.73350698]
[1744628170243,14.80965552,133.8,133.76,0.063]
[1744628170742,14.80965552,133.8,133.76,7.5389]
[1744628171239,7.33585552,133.78,133.76,0.063]
[1744628172939,14.81075552,133.78,133.76,0.063]
[1744628173545,7.33585552,133.77,133.76,0.063]
[1744628174054,7.33585552,133.78,133.76,0.063]
[1744628174844,14.81085552,133.78,133.76,0.063]
[1744628176320,7.33585552,133.78,133.76,0.063]
[1744628176846,14.80985552,133.8,133.76,7.68317866]
[1744628177620,14.80985552,133.8,133.76,0.34732314]
[1744628177852,7.33585552,133.79,133.76,0.34732314]
[1744628178923,7.33585552,133.79,133.76,0.063]
[1744628179328,14.80985552,133.8,133.76,0.063]
[1744628179828,7.474,133.8,133.76,14.87485552]
[1744628180027,14.80985552,133.8,133.76,14.87485552]
[1744628180251,14.80985552,133.8,133.76,7.39885552]
[1744628180443,14.80985552,133.8,133.76,0.063]
[1744628181147,7.33585552,133.79,133.76,0.063]
[1744628181350,14.80985552,133.8,133.76,0.063]
[1744628181728,14.80985552,133.8,133.76,7.539]
[1744628181928,16.17585552,133.81,133.77,15.23734023]
[1744628182452,23.64915552,133.81,133.77,7.90148471]
[1744628183553,16.17585552,133.81,133.77,7.90148471]
[1744628183853,14.80915552,133.81,133.77,7.90148471]
[1744628184458,7.33585552,133.79,133.76,0.063]
[1744628184757,7.33585552,133.78,133.76,0.063]
[1744628185558,14.81095552,133.78,133.76,0.063]
[1744628185851,7.33585552,133.77,133.76,0.063]
[1744628187056,14.81135552,133.77,133.76,0.063]
[1744628188058,82.9,133.8,133.76,0.063]
[1744628188356,7.33585552,133.79,133.76,0.063]
[1744628188661,7.33585552,133.77,133.76,0.063]
[1744628189234,14.81135552,133.77,133.76,0.063]
[1744628191860,7.33585552,133.77,133.76,0.063]
[1744628192241,14.81135552,133.77,133.76,0.063]
[1744628203647,14.81135552,133.77,133.74,0.063]
[1744628203648,26.0,133.75,133.74,0.063]
[1744628203870,36.6792776,133.75,133.74,0.063]
[1744628204043,7.33585552,133.75,133.74,0.063]
[1744628204757,14.81245552,133.75,133.74,0.063]
[1744628207871,90.3762,133.76,133.74,0.063]
[1744628208076,97.71205552,133.76,133.74,0.063]
[1744628208378,106.51205552,133.76,133.74,0.063]
[1744628208675,23.61205552,133.76,133.74,0.063]
[1744628209057,14.81245552,133.75,133.74,0.063]
[1744628211069,7.4766,133.75,133.74,0.063]
[1744628211265,14.81245552,133.75,133.74,0.063]
[1744628213257,7.4766,133.75,133.74,0.063]
[1744628213459,16.13585552,133.76,133.74,0.063]
[1744628213672,16.2761,133.76,133.74,0.063]
[1744628214054,23.61195552,133.76,133.74,0.063]
[1744628215375,14.81135552,133.77,133.74,0.063]
[1744628215581,26.0,133.75,133.74,0.063]
[1744628218460,40.81245552,133.75,133.74,0.063]
[1744628219587,33.4766,133.75,133.74,0.063]
[1744628219880,40.81245552,133.75,133.74,0.063]
[1744628221886,33.4766,133.75,133.74,0.063]
[1744628222087,26.0,133.75,133.74,0.063]
[1744628229987,8.8,133.77,133.74,0.063]
[1744628230399,16.13585552,133.77,133.74,0.063]
[1744628231988,23.61135552,133.77,133.74,0.063]
[1744628233512,16.13585552,133.77,133.74,0.063]
[1744628234114,8.8,133.77,133.74,0.063]
[1744628235308,16.2755,133.77,133.74,0.063]
[1744628236008,8.8,133.77,133.74,0.063]
[1744628236595,5.8,133.77,133.74,0.063]
[1744628236795,13.2755,133.77,133.74,0.063]
[1744628237496,20.61135552,133.77,133.74,0.063]
[1744628237992,13.2755,133.77,133.74,0.063]
[1744628239018,5.8,133.77,133.74,0.063]
[1744628239213,5.8,133.77,133.74,7.39885552]
[1744628239518,5.8,133.77,133.75,0.42648471]
[1744628239708,7.33585552,133.79,133.75,0.42648471]
[1744628239709,316.09,133.82,133.77,0.42648471]
[1744628239912,323.42585552,133.82,133.77,7.76234023]
[1744628240099,7.33585552,133.79,133.75,7.33585552]
[1744628240507,26.0,133.79,133.75,7.33585552]
[1744628241221,33.33585552,133.79,133.75,0.28432314]
[1744628241415,14.81075552,133.78,133.74,7.39885552]
[1744628241718,26.0,133.79,133.75,7.76234023]
[1744628241920,26.0,133.79,133.76,7.33585552]
[1744628242910,26.0,133.79,133.75,7.76234023]
[1744628243119,26.0,133.79,133.74,7.5401]
[1744628243120,40.81025552,133.79,133.74,7.39885552]
[1744628243292,7.33585552,133.78,133.74,14.87595552]
[1744628243492,40.81025552,133.79,133.75,7.33585552]
[1744628244321,26.0,133.79,133.75,7.33585552]
[1744628244519,26.0,133.79,133.76,7.62017866]
[1744628244690,7.33585552,133.81,133.76,0.28432314]
[1744628245012,33.33585552,133.79,133.74,14.87595552]
[1744628245221,7.33585552,133.78,133.74,0.34732314]
[1744628245519,7.33585552,133.78,133.75,2.73599915]
[1744628245902,7.475,133.78,133.76,2.73599915]
[1744628246509,7.475,133.78,133.75,2.73599915]
[1744628246710,7.33585552,133.77,133.75,2.73599915]
[1744628247019,26.0,133.76,133.75,2.73599915]
[1744628247225,26.0,133.76,133.74,0.063]
[1744628252622,33.4761,133.76,133.74,0.063]
[1744628252924,14.81155552,133.77,133.74,0.063]
[1744628254724,26.0,133.75,133.74,0.063]
[1744628254926,33.4766,133.75,133.74,0.063]
[1744628255429,26.0,133.75,133.74,0.063]
[1744628255931,26.0,133.75,133.74,2.80077162]
[1744628257627,8.78,133.78,133.75,0.42648471]
[1744628257827,8.78,133.78,133.76,7.33585552]
[1744628258140,8.78,133.78,133.76,10.07362714]
[1744628258511,8.78,133.78,133.77,2.73777162]
[1744628260028,14.81005552,133.8,133.77,2.73777162]
[1744628260238,14.81005552,133.8,133.75,15.23864023]
[1744628261233,14.81005552,133.8,133.76,2.73609404]
[1744628261402,14.81045552,133.79,133.76,2.73609404]
[1744628261716,14.80985552,133.8,133.76,2.73609404]
[1744628261914,7.33585552,133.79,133.76,2.73609404]
[1744628262506,7.33585552,133.79,133.75,15.23874023]
[1744628263631,8.78,133.81,133.75,15.23874023]
[1744628263938,26.0,133.79,133.78,7.33585552]
[1744628264110,26.0,133.79,133.77,7.62017866]
[1744628264431,26.0,133.79,133.78,2.7352752]
[1744628264833,249.4429,133.82,133.78,2.7352752]
[1744628265033,241.97,133.82,133.79,10.35545386]
[1744628265349,241.97,133.82,133.79,10.07113072]
[1744628265838,241.97,133.82,133.79,2.7352752]
[1744628266341,241.97,133.82,133.8,2.7352752]
[1744628266853,241.97,133.82,133.79,15.09437866]
[1744628267014,241.97,133.82,133.79,14.81005552]
[1744628267215,241.97,133.82,133.78,14.81055552]
[1744628267412,241.97,133.82,133.79,7.33585552]
[1744628267635,0.03,133.82,133.81,7.76234023]
[1744628267934,0.03,133.82,133.81,2.73086955]
[1744628268526,0.03,133.82,133.81,10.06672507]
[1744628271520,0.03,133.82,133.81,2.72499042]
[1744628271724,0.03,133.82,133.81,10.06084594]
[1744628272522,0.03,133.82,133.81,7.33585552]
[1744628272841,0.03,133.82,133.81,7.76234023]
[1744628273028,0.03,133.82,133.81,26.41198909]
[1744628273231,0.03,133.82,133.81,33.88518909]
[1744628275753,0.03,133.82,133.81,36.60593028]
[1744628277236,0.03,133.82,133.81,33.88518909]
[1744628278024,0.03,133.82,133.8,82.5998683]
[1744628278224,0.03,133.82,133.8,89.93572382]
[1744628278434,0.03,133.82,133.8,97.40952382]
[1744628278731,0.03,133.82,133.81,7.76234023]
[1744628278929,0.03,133.82,133.81,26.41198909]
[1744628279652,0.03,133.82,133.81,36.60382336]
[1744628280536,0.03,133.82,133.81,43.18822336]
[1744628281435,0.0001,133.82,133.81,43.18822336]
[1744628282126,0.0001,133.82,133.81,125.78809166]
[1744628283827,0.0001,133.82,133.81,119.20369166]
[1744628286452,0.0001,133.82,133.81,100.26971966]
[1744628286655,0.0001,133.82,133.81,17.66985136]
[1744628286857,0.0001,133.82,133.81,17.9541745]
[1744628287233,0.0001,133.82,133.79,89.93572382]
[1744628287448,0.0001,133.82,133.79,7.33585552]
[1744628287845,0.0001,133.82,133.78,0.14216157]
[1744628288033,0.0001,133.82,133.79,7.33585552]
[1744628288434,0.0001,133.82,133.78,1.87432314]
[1744628288629,0.0001,133.82,133.79,7.33585552]
[1744628289961,0.0001,133.82,133.79,14.81015552]
[1744628290159,7.33595552,133.82,133.78,7.90108471]
[1744628290349,7.33595552,133.82,133.78,14.95261709]
[1744628290747,7.33595552,133.82,133.78,7.61676157]
[1744628291244,14.80885552,133.82,133.78,7.61676157]
[1744628291561,7.473,133.82,133.78,14.95261709]
[1744628291759,0.0001,133.82,133.78,14.95261709]
[1744628291962,7.33595552,133.82,133.78,14.95261709]
[1744628292158,14.80875552,133.82,133.77,15.09537866]
[1744628292366,7.33585552,133.81,133.77,15.09537866]
[1744628293459,14.80915552,133.81,133.77,7.33585552]
[1744628293660,7.33585552,133.79,133.75,7.5393]
[1744628293839,7.33585552,133.79,133.75,14.87515552]
[1744628294161,7.4733,133.81,133.75,0.063]
[1744628294162,1.6025,133.8,133.75,0.063]
[1744628294336,7.33585552,133.78,133.75,0.063]
[1744628294763,8.74,133.79,133.76,7.33585552]
[1744628296168,8.74,133.79,133.76,14.81175552]
[1744628296473,8.74,133.79,133.75,14.87525552]
[1744628297360,8.74,133.79,133.76,14.81145552]
[1744628297669,8.74,133.79,133.77,7.33585552]
[1744628298046,8.74,133.79,133.76,14.81145552]
[1744628298350,8.74,133.79,133.76,7.4756]
[1744628298551,8.74,133.79,133.76,14.81145552]
[1744628300463,8.74,133.79,133.76,7.4756]
[1744628300656,8.74,133.79,133.76,14.81145552]
[1744628301246,8.74,133.79,133.76,7.4756]
[1744628301573,8.74,133.79,133.76,14.81145552]
[1744628306074,8.74,133.79,133.76,7.33585552]
[1744628306257,16.07585552,133.79,133.75,15.01741709]
[1744628306881,8.74,133.79,133.75,15.01741709]
[1744628307578,8.74,133.79,133.76,7.62017866]
[1744628308062,8.74,133.79,133.77,7.4755]
[1744628308266,1.6025,133.8,133.77,7.4755]
[1744628309180,1.6025,133.8,133.77,14.81135552]
[1744628311079,1.6025,133.8,133.77,7.4755]
[1744628311261,7.33585552,133.81,133.77,14.81135552]
[1744628311457,7.33595552,133.82,133.77,14.81135552]
[1744628311979,7.33595552,133.82,133.78,7.76234023]
[1744628312568,7.33595552,133.82,133.78,7.90108471]
[1744628313157,14.80865552,133.82,133.78,7.90108471]
[1744628313354,7.33585552,133.81,133.77,7.4752]
[1744628313591,7.33585552,133.8,133.76,7.61796157]
[1744628313883,7.33585552,133.79,133.75,97.61728539]
[1744628314073,7.33585552,133.77,133.75,0.063]
[1744628316366,33.33585552,133.78,133.75,0.063]
[1744628316774,33.33585552,133.78,133.75,7.82534023]
[1744628316775,26.0,133.78,133.75,7.82534023]
[1744628316977,7.33585552,133.79,133.75,7.82534023]
[1744628318295,14.81035552,133.79,133.75,7.82534023]
[1744628318476,14.81035552,133.79,133.75,15.30194023]
[1744628319710,14.81035552,133.79,133.75,0.063]
[1744628319992,7.33585552,133.78,133.75,0.063]
[1744628320183,7.33585552,133.77,133.75,0.063]
[1744628320374,14.81135552,133.77,133.75,0.063]
[1744628320988,16.46805552,133.78,133.75,0.063]
[1744628321687,33.33585552,133.79,133.75,7.39885552]
[1744628322595,7.33585552,133.78,133.75,0.063]
[1744628323393,40.81065552,133.79,133.75,0.063]
[1744628325600,40.81065552,133.79,133.75,14.87525552]
[1744628325899,40.81065552,133.79,133.75,7.5394]
[1744628326068,7.33585552,133.77,133.75,0.063]
[1744628326464,7.33585552,133.78,133.75,0.063]
[1744628327594,14.81135552,133.77,133.75,0.063]
[1744628328400,7.33585552,133.76,133.75,0.063]
[1744628329991,14.81185552,133.76,133.75,0.063]
[1744628330373,8.72,133.77,133.75,0.063]
[1744628332402,23.53145552,133.77,133.75,0.063]
[1744628332778,16.1956,133.77,133.75,0.063]
[1744628333802,8.72,133.77,133.75,0.063]
[1744628334403,16.1956,133.77,133.75,0.063]
[1744628334601,23.53145552,133.77,133.75,0.063]
[1744628335401,7.33585552,133.76,133.75,0.063]
[1744628336501,14.81185552,133.76,133.75,0.063]
[1744628338604,16.33925552,133.76,133.75,0.063]
[1744628339275,34.98890438,133.76,133.75,0.063]
[1744628340382,34.98890438,133.76,133.75,0.0001]
[1744628341506,18.64964886,133.75,133.74,0.0001]
[1744628341819,55.32892646,133.75,133.74,0.0001]
[1744628342214,25.98550438,133.75,133.74,0.0001]
[1744628342708,33.46210438,133.75,133.74,0.0001]
[1744628344131,62.80552646,133.75,133.74,0.0001]
[1744628346309,25.98550438,133.74,133.73,0.063]
[1744628346811,55.32892646,133.74,133.73,0.063]
[1744628347109,36.6792776,133.74,133.73,0.063]
[1744628347412,44.1563776,133.74,133.73,0.063]
[1744628347911,44.1563776,133.74,133.73,0.063]
[1744628350524,7.4771,133.74,133.73,0.063]
[1744628350818,14.81295552,133.74,133.73,0.063]
[1744628352413,7.4771,133.74,133.73,0.063]
[1744628352605,14.81295552,133.74,133.73,0.063]
[1744628353107,44.1563776,133.74,133.73,0.063]
[1744628353994,14.81295552,133.74,133.73,0.063]
[1744628355415,44.1563776,133.74,133.73,0.063]
[1744628358423,62.80602646,133.74,133.73,0.063]
[1744628359823,44.1563776,133.74,133.73,0.063]
[1744628361306,14.81295552,133.74,133.73,0.063]
[1744628363210,23.47295552,133.74,133.73,0.063]
[1744628363819,8.66,133.74,133.73,0.063]
[1744628365117,8.66,133.74,133.73,7.39885552]
[1744628365316,8.66,133.74,133.73,0.063]
[1744628366022,8.66,133.74,133.73,7.5407]
[1744628367629,14.81185552,133.76,133.73,0.063]
[1744628369027,7.33585552,133.75,133.73,0.063]
[1744628370934,14.81195552,133.76,133.73,0.063]
[1744628372034,7.33585552,133.75,133.73,0.063]
[1744628373133,14.81275552,133.75,133.73,0.063]
[1744628374814,7.4769,133.75,133.73,0.063]
[1744628375015,14.81275552,133.75,133.73,0.063]
[1744628377342,7.33585552,133.74,133.73,0.063]
[1744628378642,14.81295552,133.74,133.73,0.063]
[1744628381148,44.1563776,133.74,133.73,0.063]
[1744628382935,14.81295552,133.74,133.73,0.063]
[1744628383827,7.4771,133.74,133.73,0.063]
[1744628384029,14.81275552,133.75,133.73,0.063]
[1744628384544,7.33585552,133.74,133.73,0.063]
[1744628384720,15.99585552,133.76,133.73,0.063]
[1744628384924,23.47185552,133.76,133.73,0.063]
[1744628386549,7.33585552,133.75,133.73,0.063]
[1744628387252,23.47185552,133.76,133.73,0.063]
[1744628388652,7.33585552,133.75,133.73,0.063]
[1744628389344,14.81255552,133.75,133.73,0.063]
[1744628389733,15.99585552,133.76,133.73,0.063]
[1744628390326,36.6792776,133.74,133.72,0.063]
[1744628390525,33.33585552,133.73,133.72,0.063]
[1744628390853,40.81355552,133.73,133.72,0.063]
[1744628396365,7.4766,133.75,133.72,0.063]
[1744628396670,7.33585552,133.73,133.72,0.063]
[1744628397046,33.33585552,133.73,133.72,0.063]
[1744628398775,40.81355552,133.73,133.72,0.063]
[1744628399775,26.0,133.73,133.72,0.063]
[1744628400175,33.33585552,133.73,133.72,0.063]
[1744628400385,7.33585552,133.75,133.72,0.063]
[1744628400742,7.476,133.76,133.72,15.30334023]
[1744628400743,7.33585552,133.76,133.72,15.30334023]
[1744628400977,7.33585552,133.78,133.74,7.76234023]
[1744628401178,7.33585552,133.77,133.73,1.5285]
[1744628401555,7.33585552,133.76,133.73,1.5285]
[1744628401761,7.33585552,133.74,133.72,0.063]
[1744628401980,7.33585552,133.73,133.72,0.063]
[1744628402182,15.97585552,133.73,133.72,0.063]
[1744628402860,23.45355552,133.73,133.72,0.063]
[1744628404167,42.10320438,133.73,133.72,0.063]
[1744628404371,23.45355552,133.73,133.72,0.063]
[1744628408297,18.64964886,133.72,133.71,0.063]
[1744628408602,25.98550438,133.71,133.7,0.063]
[1744628409488,33.46430438,133.71,133.7,0.063]
[1744628412604,33.46430438,133.71,133.68,0.063]
[1744628412605,41.07964886,133.7,133.68,0.063]
[1744628412781,41.07964886,133.7,133.67,0.0001]
[1744628412782,82.85352646,133.68,133.67,0.0001]
[1744628413098,18.64964886,133.67,133.66,0.063]
[1744628413303,34.62550438,133.67,133.66,0.063]
[1744628414598,42.10660438,133.67,133.66,0.063]
[1744628415199,42.10660438,133.67,133.64,0.063]
[1744628415200,18.64964886,133.65,133.64,0.063]
[1744628415414,7.33585552,133.65,133.64,0.063]
[1744628416600,33.46770438,133.65,133.64,0.063]
[1744628418805,18.64964886,133.64,133.63,0.063]
[1744628419003,25.98550438,133.64,133.63,0.063]
[1744628419918,14.81855552,133.64,133.63,0.063]
[1744628420298,7.33585552,133.64,133.63,0.063]
[1744628420498,7.33585552,133.66,133.63,0.063]
[1744628420912,98.87585552,133.67,133.63,13.55025552]
[1744628421110,98.87585552,133.67,133.64,7.33585552]
[1744628421111,8.64,133.67,133.64,7.33585552]
[1744628421323,8.64,133.67,133.63,13.55025552]
[1744628421324,23.45705552,133.67,133.63,13.55025552]
[1744628421500,23.45705552,133.67,133.63,6.2144]
[1744628422128,23.45705552,133.67,133.63,13.6977]
[1744628422323,23.45705552,133.67,133.63,21.03355552]
[1744628422702,15.97585552,133.67,133.63,21.03355552]
[1744628423124,8.64,133.67,133.63,21.03355552]
[1744628423322,15.97585552,133.67,133.63,21.03355552]
[1744628424135,7.33585552,133.66,133.63,6.2144]
[1744628424331,15.97585552,133.67,133.63,13.6977]
[1744628425435,7.33585552,133.64,133.63,0.063]
[1744628426235,14.81855552,133.64,133.63,0.063]
[1744628426737,7.33585552,133.64,133.63,0.063]
[1744628427435,7.33585552,133.65,133.63,0.063]
[1744628427630,8.62,133.66,133.63,0.063]
[1744628428033,16.1016,133.66,133.63,0.063]
[1744628428918,8.62,133.66,133.63,7.39885552]
[1744628429143,8.62,133.66,133.63,11.5534766]
[1744628429747,252.2710766,133.68,133.63,11.5534766]
[1744628430046,8.62,133.69,133.67,11.4904766]
[1744628430240,8.62,133.69,133.68,11.4904766]
[1744628430828,8.62,133.69,133.67,18.9710766]
[1744628431921,11.4904766,133.68,133.64,91.7235683]
[1744628432126,11.4904766,133.66,133.63,14.0646]
[1744628432324,11.4904766,133.66,133.63,0.063]
[1744628432537,11.4904766,133.65,133.63,0.063]
[1744628432738,11.4904766,133.66,133.63,0.063]
[1744628434043,18.9721766,133.66,133.63,0.063]
[1744628434934,11.4904766,133.65,133.63,0.063]
[1744628435121,18.9709766,133.68,133.63,0.063]
[1744628435471,11.4904766,133.65,133.63,0.063]
[1744628435836,11.4904766,133.66,133.63,0.063]
[1744628436337,18.9721766,133.66,133.63,0.063]
[1744628436537,11.4904766,133.65,133.63,0.063]
[1744628436937,18.9721766,133.66,133.63,0.063]
[1744628437325,11.4904766,133.66,133.63,0.063]
[1744628438549,18.9723766,133.66,133.63,0.063]
[1744628438736,11.4904766,133.65,133.63,0.063]
[1744628439046,11.4904766,133.68,133.63,11.5534766]
[1744628439245,16.1002,133.69,133.65,11.4904766]
[1744628439443,20.1104766,133.69,133.65,11.4904766]
[1744628439647,20.1104766,133.69,133.67,11.4904766]
[1744628439648,8.62,133.69,133.67,11.4904766]
[1744628439952,8.62,133.69,133.66,11.4904766]
[1744628440755,8.62,133.69,133.66,18.9715766]
[1744628441829,8.62,133.69,133.67,11.4904766]
[1744628442147,8.62,133.69,133.68,11.91696131]
[1744628442853,0.063,133.71,133.67,1.6472]
[1744628443041,11.4904766,133.68,133.64,9.0473]
[1744628443854,11.4904766,133.68,133.64,1.5646]
[1744628444953,18.9712766,133.68,133.64,1.5646]
[1744628445331,18.9712766,133.68,133.63,25.6111766]
[1744628445649,11.4904766,133.67,133.63,6.6376]
[1744628446851,18.9715766,133.67,133.63,14.1209]
[1744628447249,18.9715766,133.67,133.63,6.6376]
[1744628447439,11.4904766,133.65,133.63,0.063]
[1744628447636,11.4904766,133.64,133.63,0.063]
[1744628448956,18.9731766,133.64,133.63,0.063]
[1744628449950,49.11330206,133.64,133.63,0.063]
[1744628451141,18.64964886,133.63,133.62,0.063]
[1744628451454,45.32496502,133.63,133.62,0.063]
[1744628452246,45.32496502,133.63,133.62,0.0001]
[1744628453250,52.80826502,133.63,133.62,0.0001]
[1744628455558,37.62342546,133.63,133.62,0.0001]
[1744628458160,41.27650552,133.63,133.62,0.0001]
[1744628459253,90.383,133.64,133.62,0.0001]
[1744628459438,11.4904766,133.63,133.62,0.0001]
[1744628461955,8.62,133.68,133.62,11.4905766]
[1744628462157,8.62,133.68,133.66,11.4904766]
[1744628462543,8.62,133.68,133.64,11.4904766]
[1744628463248,27.5910766,133.68,133.64,11.4904766]
[1744628464357,27.5910766,133.68,133.63,11.4904766]
[1744628464557,11.4904766,133.66,133.62,101.5741449]
[1744628465059,11.4904766,133.67,133.63,11.4904766]
[1744628465255,16.1006,133.68,133.62,101.5741449]
[1744628465256,11.4904766,133.66,133.62,101.5741449]
[1744628466266,7.4816,133.66,133.62,101.5741449]
[1744628466466,7.4816,133.66,133.62,82.5999683]
[1744628466467,11.4904766,133.65,133.62,82.5999683]
[1744628466645,11.4904766,133.65,133.62,0.0001]
[1744628466958,7.4816,133.66,133.62,0.0001]
[1744628467155,11.4904766,133.65,133.62,0.0001]
[1744628467970,18.9729766,133.65,133.62,0.0001]
[1744628468466,7.4825,133.65,133.62,0.0001]
[1744628468767,8.62,133.68,133.64,11.4904766]
[1744628469061,8.62,133.68,133.65,11.4904766]
[1744628469271,8.62,133.68,133.64,11.4904766]
[1744628469473,16.1005,133.68,133.64,11.4904766]
[1744628469676,8.62,133.68,133.65,11.4904766]
[1744628469858,8.62,133.68,133.66,11.4904766]
[1744628470372,8.62,133.68,133.65,7.4817]
[1744628470373,8.62,133.68,133.65,11.4904766]
[1744628471073,8.62,133.68,133.65,18.9724766]
[1744628471574,8.62,133.68,133.65,11.4904766]
[1744628472884,11.5534766,133.71,133.66,11.4904766]
[1744628473081,20.1334766,133.71,133.67,11.4904766]
[1744628473279,20.1334766,133.71,133.66,11.4904766]
[1744628473455,8.643,133.71,133.67,11.4904766]
[1744628473785,8.643,133.71,133.68,11.4904766]
[1744628474290,8.643,133.71,133.69,11.4904766]
[1744628474455,8.643,133.71,133.7,11.4904766]
[1744628474653,0.063,133.71,133.7,11.4904766]
[1744628474962,0.063,133.71,133.7,18.02296131]
[1744628475157,0.063,133.71,133.7,36.67261017]
[1744628475551,0.063,133.71,133.7,119.27247847]
[1744628475767,0.063,133.73,133.71,0.42648471]
[1744628476061,0.063,133.73,133.72,32.12941017]
[1744628476281,0.063,133.73,133.72,114.72927847]
[1744628476584,0.063,133.73,133.72,1.5628]
[1744628477188,0.063,133.73,133.72,20.5315766]
[1744628478671,0.063,133.73,133.72,9.0411]
[1744628478989,0.063,133.73,133.72,20.5315766]
[1744628480164,0.063,133.73,133.72,39.60771017]
[1744628481194,0.063,133.73,133.72,122.20757847]
[1744628482065,0.063,133.75,133.73,0.42648471]
[1744628482265,0.063,133.75,133.74,41.63060206]
[1744628482775,0.063,133.75,133.74,42.05708677]
[1744628483689,0.063,133.75,133.74,30.56661017]
[1744628483989,0.063,133.75,133.74,38.04371017]
[1744628484797,0.063,133.75,133.74,19.39406131]
[1744628485171,0.063,133.75,133.74,7.90358471]
[1744628485375,0.063,133.75,133.74,19.25189974]
[1744628485571,0.063,133.75,133.74,19.39406131]
[1744628486382,0.063,133.75,133.73,11.77479974]
[1744628486585,0.063,133.75,133.72,103.1310449]
[1744628487091,0.063,133.75,133.73,11.4904766]
[1744628487292,0.063,133.75,133.74,11.91696131]
[1744628488304,0.063,133.75,133.74,38.04371017]
[1744628490193,0.063,133.75,133.74,19.39406131]
[1744628490586,0.063,133.75,133.73,0.14216157]
[1744628490785,0.063,133.75,133.72,95.6531449]
[1744628491492,0.063,133.75,133.74,11.77479974]
[1744628491699,0.063,133.75,133.74,11.91696131]
[1744628491900,0.063,133.75,133.74,38.04371017]
[1744628492888,0.063,133.75,133.74,120.64357847]
[1744628496694,0.063,133.75,133.74,132.13405507]
[1744628498714,0.063,133.75,133.74,109.15310187]
[1744628498893,0.063,133.75,133.74,90.0769683]
[1744628499095,0.063,133.75,133.72,90.22002987]
[1744628499393,11.4904766,133.73,133.66,30.1943766]
[1744628499599,11.4904766,133.71,133.66,30.1943766]
[1744628499796,26.0,133.74,133.67,26.94820266]
[1744628500181,11.4904766,133.72,133.68,7.4804]
[1744628501206,18.9687766,133.72,133.68,7.4804]
[1744628501411,26.0,133.74,133.68,18.9708766]
[1744628501616,11.4904766,133.74,133.7,11.4904766]
[1744628501807,11.4904766,133.73,133.68,18.9708766]
[1744628502009,11.4904766,133.72,133.68,18.9708766]
[1744628502502,11.4904766,133.72,133.67,19.28569974]
[1744628502816,11.4904766,133.7,133.67,0.03]